Cogmind - Beta 13 @@@ ROGUE MODE // 2024.04.16 @ 15:40:25 Player: BagelsSniperWolf Result: Destroyed by Y-45 Defender with Heavy Assault Rifle Performance ------------- Evolutions (2) 1000 Regions Visited (3) 600 Robots Destroyed (28) 140 Value Destroyed (1032) 1032 Prototype IDs (5) 100 Alien Tech Used (0) 0 Bonus (0) 0 TOTAL SCORE: 2872 Bonus ------- None Cogmind --------- Core Integrity 0/550 Matter 300/300 Energy 100/100 System Corruption 0% Temperature Cool (0) Movement Walking (120) Location -8/Materials Parts ------- > --- POWER (3) -------- (None) > --- PROPULSION (2) --- Aluminum Leg > --- UTILITY (4) ------ Targeting Computer > --- WEAPON (2) ------- Particle Gun Axe > --- INVENTORY (5) ---- (None) Peak State ------------ > --- POWER ------------ Improved Ion Engine Improved Ion Engine Deuterium Engine > --- PROPULSION ------- Improved Aluminum Leg Carbon-fiber Leg > --- UTILITY ---------- Heat Sink Targeting Computer Recoil Stabilizer Hacking Suite > --- WEAPON ----------- Spread Laser Spread Laser > --- INVENTORY -------- Ion Engine Aluminum Leg Targeting Computer Improved Assault Rifle [Rating: 24] Favorites ----------- Power Light Ion Engine Engine Light Ion Engine Power Core Light Nuclear Core Propulsion Compact Wheel Leg Improved Aluminum Leg Wheel Compact Wheel Utility Targeting Computer Device Heat Sink Storage Huge Storage Unit Processor Targeting Computer Hackware Hacking Suite Weapon Spread Laser Energy Gun Spread Laser Ballistic Gun Improved Assault Rifle Slashing Weapon Axe Build | -11 -10 -9 -8 ------- Run | Yrd Mat Mat Mat Slots Evolved 4 | . . 2 2 Power 2 | . . 1 1 Propulsion . | . . . . Utility 2 | . . 1 1 Weapon . | . . . . Parts Attached 51 | 4 5 26 16 Power 14 | 1 1 7 5 Engine 12 | 1 1 7 3 Core 2 | . . . 2 Reactor . | . . . . Propulsion 12 | 2 . 6 4 Treads . | . . . . Leg 8 | . . 4 4 Wheel 4 | 2 . 2 . Hover . | . . . . Flight . | . . . . Utility 11 | 1 2 5 3 Device 3 | . . 1 2 Storage 3 | 1 1 1 . Processor 4 | . 1 2 1 Hackware 1 | . . 1 . Protection . | . . . . Artifact . | . . . . Weapon 14 | . 2 8 4 Energy Gun 9 | . 1 6 2 Energy Cannon . | . . . . Ballistic Gun 4 | . 1 2 1 Ballistic Cannon . | . . . . Launcher . | . . . . Special Weapon . | . . . . Impact Weapon . | . . . . Slashing Weapon 1 | . . . 1 Piercing Weapon . | . . . . Special Melee Weapon . | . . . . Unidentified Prototypes 1 | . . 1 . Parts Lost 25 | . . 7 18 Power 9 | . . 3 6 Propulsion 4 | . . 1 3 Utility 6 | . . 1 5 Weapon 6 | . . 2 4 Highest Loss Streak 8 | . . 3 8 To Critical Strikes . | . . . . Average Slot Usage (%) 77 | . 98 94 63 Engine 16 | . 12 21 14 Leg 8 | . . 6 9 Wheel 7 | . 28 14 . Device 6 | . . 2 9 Storage 4 | . 14 8 . Processor 10 | . 14 9 10 Hackware 6 | . . 10 3 Energy Gun 13 | . 14 18 9 Ballistic Gun 3 | . 14 1 3 Naked Turns . | . . . . Heaviest Build 95 | 8 17 95 31 Greatest Support 32 | 32 32 32 28 Greatest Overweight (x) 4 | . . 4 4 Average Overweight (x) . | . . . . Largest Inventory Capacity 25 | 8 10 25 5 Average Capacity 9 | 7 8 17 5 Most Carried 8 | 6 8 7 5 Average Carried 2 | 3 6 4 1 Final Capacity 10 | 8 10 5 5 Final Carried 7 | 6 7 3 . Class Distribution -------------------- 67% | Mutant 32% | Scavenger-Mutant Dominant Class ---------------- Mutant | -10/Materials Mutant | -9/Materials Mutant | -8/Materials Resources | -11 -10 -9 -8 ----------- Run | Yrd Mat Mat Mat Matter Collected 781 | 235 21 223 302 Remotely . | . . . . Salvage Created 967 | . 21 349 597 Parts 54 | . 6 20 28 Haulers Intercepted . | . . . . Recyclers Shooed . | . . . . Parts Field Recycled . | . . . . Retrieved Matter . | . . . . Parts Self-Destructed . | . . . . Prevented . | . . . . Kills | -11 -10 -9 -8 ------- Run | Yrd Mat Mat Mat Combat Hostiles Destroyed 27 | . 2 11 14 Melee 3 | . . . 3 Guns 23 | . 2 10 11 Classes Destroyed 6 | . 1 3 2 Worker 1 | . . . 1 Swarmer 5 | . 2 3 . Grunt 14 | . . 5 9 Duelist 1 | . . 1 . Sentry 6 | . . 2 4 Hunter 1 | . . . 1 Best Kill Streak 4 | . 2 4 4 Combat Bots Only 4 | . 2 4 4 Max Kills in Single Turn 1 | . 1 1 1 Gunslinging . | . . . . Exploded . | . . . . Melee 1 | . . . 1 Uniques/NPCs Destroyed . | . . . . Combat | -11 -10 -9 -8 -------- Run | Yrd Mat Mat Mat Hostile Shots Fired 264 | . 16 73 175 Missed 77 | . 3 13 61 Damage Taken 2749 | . 111 804 1834 Core 728 | . 37 134 557 Absorbed by Shields . | . . . . Regen/Repaired (Parts) 53 | . . 53 . Core Remaining (%) 83 | 100 85 66 . Volleys Fired 107 | . 3 37 67 Largest 2 | . 2 2 2 Hottest 130 | . 70 126 130 Shots Fired 152 | . 6 60 86 Gun 152 | . 6 60 86 Cannon . | . . . . Launcher . | . . . . Special . | . . . . Kinetic 45 | . 3 5 37 Thermal 92 | . 3 40 49 Explosive . | . . . . Electromagnetic 15 | . . 15 . Robot Hit Streak 22 | . 5 22 13 Robot Miss Streak 5 | . . 4 5 Penetration Max . | . . . . Secondary Targets 3 | . . 2 1 Max Gunslinging Chain 1 | . . 1 1 Shots Hit Robots 140 | . 5 51 84 Core Hits 87 | . 2 16 69 Critical Kills . | . . . . Critical Parts Destroyed . | . . . . Critical Strikes 4 | . . 4 . Burn 4 | . . 4 . Melee Attacks 8 | . . . 8 Impact . | . . . . Slashing 8 | . . . 8 Piercing . | . . . . Sneak Attacks 1 | . . . 1 Combat Hostiles . | . . . . Follow-up Attacks . | . . . . Damage Inflicted 2277 | . 63 779 1435 Guns 2011 | . 63 776 1172 Cannons . | . . . . Explosions . | . . . . Melee 263 | . . . 263 Ramming 3 | . . 3 . Kinetic 493 | . 25 38 430 Thermal 1405 | . 38 625 742 Explosive . | . . . . Electromagnetic 113 | . . 113 . Impact . | . . . . Slashing 263 | . . . 263 Piercing . | . . . . Highest Corruption . | . . . . Average Corruption . | . . . . Corruption Purged . | . . . . Corruption Blocked . | . . . . Overload Shots . | . . . . Overflow Damage 51 | . . . 51 Projectiles . | . . . . Explosions . | . . . . Melee 51 | . . . 51 Knockbacks . | . . . . Impact . | . . . . Kinetic . | . . . . Secondary . | . . . . Self-Inflicted Damage . | . . . . Shots . | . . . . Rammed . | . . . . Targets Rammed 1 | . . 1 . Kicked 1 | . . 1 . Crushed . | . . . . Highest Temperature 591 | . 18 360 591 Average Temperature 158 | . 9 151 178 Received Heat Transfer 1272 | . . 291 981 Effects 15 | . . 3 12 Shutdowns 6 | . . 2 4 Energy Bleed 2 | . . . 2 Interference 2 | . . . 2 Matter Decay 1 | . . . 1 Short Circuit 3 | . . . 3 Damage (minor) 1 | . . 1 . Siege Activations . | . . . . Robots Corrupted . | . . . . Combat Hostiles . | . . . . Parts Fried . | . . . . Impact Corruptions . | . . . . Robots Melted 1 | . . 1 . Combat Hostiles 1 | . . 1 . Parts Melted 3 | . . 3 . Heat Transferred 2852 | . 111 1665 1076 Parts Sabotaged . | . . . . Parts Stolen . | . . . . Parts Stripped . | . . . . Power Chain Reactions . | . . . . Alert | -11 -10 -9 -8 ------- Run | Yrd Mat Mat Mat Peak Influence 305 | . 55 230 305 Initial 96 | . . 22 96 Average 108 | . 16 104 126 Maximum Alert Level 1 | . . 1 1 Low Security (%) 80 | 100 100 79 78 Level 1 19 | . . 20 21 Level 2 . | . . . . Level 3 . | . . . . Level 4 . | . . . . Level 5 . | . . . . High Security . | . . . . Max Security . | . . . . Squads Dispatched 3 | . . 1 2 Investigation 2 | . . . 2 Extermination . | . . . . Reinforcement 1 | . . 1 . Assault . | . . . . Garrison . | . . . . Intercept . | . . . . Searches Triggered . | . . . . Construction Impeded . | . . . . Haulers Reinforced . | . . . . Active Scanning Responses . | . . . . Cargo Convoy Interrupts . | . . . . Stealth | -11 -10 -9 -8 --------- Run | Yrd Mat Mat Mat Distress Signals 3 | . . 3 . Communications Jammed . | . . . . Distress Signals . | . . . . Times Spotted 43 | . 3 18 22 Peak Tracking Total 9 | . 3 9 7 Tactical Retreats 7 | . 1 4 2 Traps | -11 -10 -9 -8 ------- Run | Yrd Mat Mat Mat Traps Triggered . | . . . . Indirectly . | . . . . Trap Hack Attempts . | . . . . Triggered . | . . . . Disarmed . | . . . . Reprogrammed . | . . . . Reused . | . . . . Traps Extracted . | . . . . Installed . | . . . . Triggered . | . . . . Machines | -11 -10 -9 -8 ---------- Run | Yrd Mat Mat Mat Machines Disabled . | . . . . Max in Single Turn . | . . . . Machines Repaired . | . . . . Machines Dismantled . | . . . . Machines Sabotaged . | . . . . Overloaded Fab Kills . | . . . . Hacking | -11 -10 -9 -8 --------- Run | Yrd Mat Mat Mat Machines Accessed 4 | . . 1 3 Terminals 3 | . . . 3 Fabricators . | . . . . Repair Stations 1 | . . 1 . Recycling Units . | . . . . Scanalyzers . | . . . . Garrison Access . | . . . . Total Hacks 16 | . . 7 9 Successful 12 | . . 6 6 Failed 4 | . . 1 3 Catastrophic . | . . . . Database Lockouts . | . . . . Manual . | . . . . Terminals 9 | . . . 9 Fabricators . | . . . . Repair Stations 7 | . . 7 . Recycling Units . | . . . . Scanalyzers . | . . . . Garrison Access . | . . . . Terminal Hacks 6 | . . . 6 Record 3 | . . . 3 Prototype ID Bank 2 | . . . 2 Alert Level 1 | . . . 1 Fabricator Hacks . | . . . . Repair Station Hacks 6 | . . 6 . Scan Component 3 | . . 3 . Repair 3 | . . 3 . Recycling Unit Hacks . | . . . . Scanalyzer . | . . . . Garrison Access Hacks . | . . . . Unauthorized Hacks . | . . . . Terminals . | . . . . Fabricators . | . . . . Repair Stations . | . . . . Recycling Units . | . . . . Scanalyzers . | . . . . Garrison Access . | . . . . Data Cores Recovered . | . . . . Used . | . . . . Hacking Detections 4 | . . 1 3 Full Trace Events 2 | . . . 2 Feedback Events . | . . . . Feedback Blocked . | . . . . Robot Schematics Acquired . | . . . . Robots Built . | . . . . Authchips . | . . . . Time . | . . . . Total Robot Build Rating . | . . . . Part Schematics Acquired . | . . . . Parts Built . | . . . . Authchips . | . . . . Time . | . . . . Total Part Build Rating . | . . . . Parts Repaired 3 | . . 3 . Time 78 | . . 78 . Parts Recycled . | . . . . Recycled Matter . | . . . . Retrieved Matter . | . . . . Retrieved Components . | . . . . Parts Scanalyzed . | . . . . Part Schematics Acquired . | . . . . Parts Damaged . | . . . . Bothacking | -11 -10 -9 -8 ------------ Run | Yrd Mat Mat Mat Used RIF Installer . | . . . . Robots Hacked . | . . . . Non-combat . | . . . . Combat . | . . . . Robot Hacks Applied . | . . . . Relay Couplers Released . | . . . . Fabnet Peak Effective % . | . . . . Robots Rewired . | . . . . Allies Hacked . | . . . . Hacks Repelled . | . . . . Allies | -11 -10 -9 -8 -------- Run | Yrd Mat Mat Mat Total Allies . | . . . . Largest Group . | . . . . Highest-Rated Group . | . . . . Highest-Rated Ally . | . . . . Total Orders . | . . . . Ally Attacks . | . . . . Total Damage . | . . . . Kills . | . . . . Allies Corrupted . | . . . . Allies Melted . | . . . . Intel | -11 -10 -9 -8 ------- Run | Yrd Mat Mat Mat Robot Analysis Total . | . . . . Derelict Logs Recovered . | . . . . Drone Launches . | . . . . Drone Recoveries . | . . . . Exploration | -11 -10 -9 -8 ------------- Run | Yrd Mat Mat Mat Turns Passed 1711 | 49 94 652 916 Spaces Moved 808 | 36 62 293 417 Core 165 | 2 . . 163 Treads . | . . . . Legs 361 | . . 107 254 Wheels 282 | 34 62 186 . Hover . | . . . . Flight . | . . . . Fastest Speed 50 | 50 100 100 50 Average Speed 130 | 97 100 124 142 Slowest Speed 400 | 100 100 400 250 Overloaded Moves . | . . . . Propulsion Burnouts . | . . . . Robots Hopped . | . . . . Cave-ins Triggered . | . . . . Exploration Rate (%) 19 | 3 17 32 25 Regions Visited 3 Branch Regions . Pre-discovered Areas . | . . . . Known Exits Taken . | . . . . Unknown Exits Taken 3 | 1 1 1 . Scrap Searched . | . . . . Spaces Dug . | . . . . Terrain Destroyed . | . . . . Melee . | . . . . Projectile . | . . . . AOE . | . . . . Terrain Rammed . | . . . . Walls Destroyed . | . . . . Machines Disabled . | . . . . Actions | -11 -10 -9 -8 --------- Run | Yrd Mat Mat Mat Total 1299 | 49 88 522 640 Wait 267 | . 11 138 118 Move 805 | 35 61 292 417 Hop . | . . . . Pick Up 46 | 10 6 18 12 Fast Attach . | . . . . Attach 41 | 4 4 19 14 Detach . | . . . . Swap 10 | . 1 7 2 Drop 14 | . 2 10 2 Fire 107 | . 3 37 67 Melee 8 | . . . 8 Ram . | . . . . Kick 1 | . . 1 . Crush . | . . . . Escape Stasis . | . . . . Rewire . | . . . . Trap . | . . . . Miscellaneous . | . . . . Route ------- -11/Scrapyard -10/Materials -9/Materials -8/Materials History --------- Turn | Location | Event 22 | -11/Scrapyard | Discovered new exit (range 16) 50 | -11/Scrapyard | Entered Materials 141 | -10/Materials | Discovered new exit (range 4) 144 | -10/Materials | Entered another Materials area 144 | -9/Materials | Evolved 2 slots: Power x1, Utility x1 312 | -9/Materials | Build established: Mutant 410 | -9/Materials | Repaired Com. Wheel 438 | -9/Materials | Repaired Lgt. Ion Engine 467 | -9/Materials | Repaired Com. Wheel 618 | -9/Materials | Lost 3 parts (1p1n1w) 655 | -9/Materials | Lost 3 parts (2p1u) 788 | -9/Materials | Discovered new exit (range 7) 796 | -9/Materials | Entered another Materials area 796 | -8/Materials | Evolved 2 slots: Power x1, Utility x1 935 | -8/Materials | Build established: Scavenger-Mutant 1235 | -8/Materials | Lost 7 parts (2p1n2u2w) 1483 | -8/Materials | Build established: Mutant 1504 | -8/Materials | Core integrity fell below 50% 1567 | -8/Materials | Core integrity fell below 20% 1594 | -8/Materials | Lost 8 parts (3p2n2u1w) 1712 | -8/Materials | Destroyed by Y-45 Defender with Heavy Assault Rifle Last Messages --------------- Destroyed Hvy. Laser. G-50 Soldier destroyed. Acquired 28 matter. T-07 Excavator is excavating. R-06 Scavenger collects Broken Adv. Heat Sink. Beam Rifle destroyed. K-01 Serf cleans the Neutrino Reactor. G-47 Trooper destroyed. K-01 Serf collects debris. Acquired Aluminum Leg. K-01 Serf collects debris. Acquired Particle Gun. K-01 Serf collects debris. Acquired 20 matter. Sneak attack on K-01 Serf. K-01 Serf destroyed. R-06 Scavenger collects Sml. Matter Pod. Y-45 Defender destroyed. R-06 Scavenger collects Hvy. Assault Rifle. R-06 Scavenger collects Heat Sink. Map ----- +----------------------------------------------------+ | ??????????????# =# #????###############??# | | ??????????????#""" # #????# # #### | | ??????????????#""" # #????# # """ + | | ??????????????#"" # ###### """ # """ #### | | ??????????????# ######## # """ # """ #??# | | ??????????????######## # # """ # #??# | | ?????????????????????# """ # # #| ! #??# | | ?????????????????????# """ + ###+######+####### | | ?????????????????????# """ # | | ?????????????????????# # | | ?????????????????????# # """"" | | ?????????????????????########## ""T"" #### | | ??????????????????????????????# # | | ???????????????????????######## "%" # | | ???????????????????????# """ + | | ???????????????????????# """ # | | ???????????????????????# # | | ???????????????????????# #### | | ??????????????????????####+#### ###+#######??? | | ??????????????????????# ## ##????????????? | | ??????????????????????# ## #?????????????? | | ????????????????##????# g ## #?????????????? | | ????????????????# ??# """ ## #?????????????? | | ??????????????### # """ r ## #?????????????? | | ??????????????? + """ ## #?????????????? | | ????????????????????? #rg@Y ## #?????????????? | | ???????????????????? # """r # ?????????????? | | ???????????????????? ?#[""" # ?????????????? | | ??????????????????? ?# """ # ????????????? | | ?????????????????? ??# g # ????????????? | | ?????????????????? ???######### !#????????????? | | ???????????????????????????????### #?????????????? | | ?????????????????????????????????????????????????? | | ?????????????????????????????????????????????????? | | ?????????????????????????????????????????????????? | | ?????????????????????????????????????????????????? | | ?????????????????????????????????????????????????? | | ?????????????????????????????????????????????????? | | ?????????????????????????????????????????????????? | | ?????????????????????????????????????????????????? | | ?????????????????????????????????????????????????? | | ?????????????????????????????????????????????????? | | ?????????????????????????????????????????????????? | | ?????????????????????????????????????????????????? | | ?????????????????????????????????????????????????? | | ?????????????????????????????????????????????????? | | ?????????????????????????????????????????????????? | | ?????????????????????????????????????????????????? | | ?????????????????????????????????????????????????? | | ?????????????????????????????????????????????????? | +----------------------------------------------------+ Best States ------------- Heat Dissipation 41 Energy Generation 28 Energy Capacity 605 Matter Stores 300 Matter Capacity 300 Sight Range 16 Terrain Scan Density 10 Evasion (%) 55 Targeting Accuracy 10 Recoil Reduction 4 Offensive Hacking 10 Item Schematics ----------------- None Robot Schematics ------------------ None Fabricated ------------ Nothing Alien Tech Used ----------------- None Achievements -------------- None Challenges ------------ None Game ------ Seed GravitonBackupProtomatter Manual? 0 Play Time 00:27:57 Cumulative 9.0 hours Start 2024.04.16 @ 15:14:33 End 2024.04.16 @ 15:40:25 Sessions 1 Manual Loads 0 Difficulty Rogue Special Mode None Game No. 14 Rogue 14 Adventurer 0 Explorer 0 Win Type - Total 0 Types 0/0/0/0/0/0/0/0/0 Lore% 6 Gallery% 12 Achievement% 13 Wizard Run 0 Options --------- Layout 0 ASCII 0 Keyboard 0 Movement Mouse Keybinds 0 Fullscreen 1 Font 18/SmallcapsGlow Map View 76x50 Zoom Use 0% Tactical HUD 0 Map Filters NONE Filters NONE Steam 1 RUN: c4fd1963-81fa-4c60-bd81-a703dc80b2b8